bitfinex/quotes_SOLUSD_20250522
["timestamp","ask_amount","ask_price","bid_price","bid_amount"]
[1747886616066,32.63192666,176.94,176.91,26.0]
[1747886616587,33.9,177.0,176.86,18.79181043]
[1747886616588,5.65035597,176.98,176.86,18.79181043]
[1747886616759,32.63192666,176.93,176.88,26.0]
[1747886616960,32.63192666,176.92,176.89,26.0]
[1747886617595,32.63192666,176.93,176.89,26.0]
[1747886617769,32.63192666,176.93,176.87,58.63192666]
[1747886618165,32.63192666,176.94,176.87,26.0]
[1747886618370,32.63192666,176.9,176.84,32.63192666]
[1747886618672,32.63192666,176.91,176.87,26.0]
[1747886618874,32.63192666,176.91,176.88,26.0]
[1747886619375,33.9,176.95,176.9,26.0]
[1747886619572,32.63192666,176.92,176.9,26.0]
[1747886619775,32.63192666,176.93,176.9,26.0]
[1747886619969,32.63192666,176.93,176.88,26.0]
[1747886620173,32.63192666,176.93,176.9,26.0]
[1747886620375,32.63192666,176.92,176.85,8.61677644]
[1747886620572,5.65238802,176.92,176.85,8.61677644]
[1747886620896,32.63192666,176.9,176.85,34.61677644]
[1747886621273,32.63192666,176.86,176.85,8.61677644]
[1747886621473,53.68306855,176.92,176.85,8.61677644]
[1747886621696,32.63192666,176.86,176.85,8.61677644]
[1747886622197,51.42373709,176.86,176.85,8.61677644]
[1747886622571,44.79181043,176.82,176.77,51.70065866]
[1747886622794,77.42373709,176.78,176.77,51.70065866]
[1747886623103,111.32373709,176.78,176.77,51.70065866]
[1747886624104,92.53192666,176.78,176.77,51.70065866]
[1747886624769,65.5567485,176.78,176.77,51.70065866]
[1747886624984,33.92,176.78,176.77,51.70065866]
[1747886625184,59.73456848,176.8,176.77,51.70065866]
[1747886625809,21.44627545,176.8,176.78,32.63192666]
[1747886625980,21.44627545,176.8,176.77,51.70065866]
[1747886626584,21.44627545,176.8,176.77,84.33258532]
[1747886626792,21.44627545,176.8,176.78,32.63192666]
[1747886627493,21.44627545,176.8,176.72,72.83456444]
[1747886627494,0.14216157,176.77,176.72,72.83456444]
[1747886627806,32.63192666,176.75,176.72,72.83456444]
[1747886628010,33.92,176.76,176.72,72.83456444]
[1747886628216,66.55192666,176.76,176.72,72.83456444]
[1747886628715,33.92,176.76,176.73,18.64964886]
[1747886628895,36.2775914,176.79,176.76,18.64964886]
[1747886629408,36.2775914,176.79,176.78,18.64964886]
[1747886629619,36.2775914,176.79,176.75,51.28157552]
[1747886629799,36.2775914,176.79,176.77,51.28157552]
[1747886629995,36.2775914,176.79,176.73,6.0938]
[1747886630199,32.63192666,176.78,176.74,18.64964886]
[1747886630522,32.63192666,176.78,176.72,105.4664911]
[1747886630523,32.63192666,176.76,176.72,91.4842133]
[1747886630889,32.63192666,176.73,176.72,72.83456444]
[1747886631624,59.92,176.75,176.72,72.83456444]
[1747886631793,32.63192666,176.73,176.72,72.83456444]
[1747886632822,59.92,176.75,176.72,72.83456444]
[1747886632823,33.92,176.75,176.72,72.83456444]
[1747886632991,32.63192666,176.73,176.72,72.83456444]
[1747886634629,33.94,176.73,176.72,72.83456444]
[1747886634806,66.57192666,176.73,176.72,72.83456444]
[1747886635323,72.23027555,176.73,176.72,72.83456444]
[1747886635518,66.57192666,176.73,176.72,72.83456444]
[1747886635919,14.14257185,176.78,176.73,18.64964886]
[1747886635920,5.6567485,176.78,176.73,18.64964886]
[1747886636137,66.57192666,176.76,176.73,18.64964886]
[1747886636303,33.94,176.76,176.72,72.83456444]
[1747886636621,32.63192666,176.74,176.72,72.83456444]
[1747886636927,33.94,176.76,176.73,18.64964886]
[1747886637224,32.63192666,176.74,176.73,18.64964886]
[1747886637523,32.63192666,176.75,176.73,18.64964886]
[1747886637715,32.63192666,176.74,176.73,18.64964886]
[1747886638021,32.63192666,176.74,176.72,72.83456444]
[1747886638627,33.94,176.76,176.72,72.83456444]
[1747886638926,36.2775914,176.79,176.75,18.64964886]
[1747886639111,32.63192666,176.78,176.74,18.79181043]
[1747886639630,36.2775914,176.79,176.74,18.79181043]
[1747886639631,68.90951806,176.79,176.74,18.79181043]
[1747886640131,32.63192666,176.78,176.74,18.79181043]
[1747886640309,32.63192666,176.76,176.74,18.64964886]
[1747886640922,32.63192666,176.75,176.72,72.83456444]
[1747886641123,32.63192666,176.73,176.72,72.83456444]
[1747886642140,33.94,176.74,176.72,72.83456444]
[1747886642435,32.63192666,176.73,176.72,72.83456444]
[1747886642648,32.63192666,176.75,176.73,18.64964886]
[1747886642934,32.63192666,176.78,176.73,18.64964886]
[1747886643145,66.57192666,176.77,176.73,24.3077641]
[1747886643325,33.94,176.77,176.74,0.14216157]
[1747886643520,32.63192666,176.78,176.74,0.14216157]
[1747886643721,102.84951806,176.79,176.74,0.14216157]
[1747886644023,102.84951806,176.79,176.78,18.64964886]
[1747886644024,36.2775914,176.79,176.78,18.64964886]
[1747886644232,36.2775914,176.79,176.78,18.79181043]
[1747886644427,36.2775914,176.79,176.76,58.63192666]
[1747886644739,32.63192666,176.78,176.75,1.5582]
[1747886644938,38.28946671,176.76,176.72,72.83456444]
[1747886645136,32.63192666,176.74,176.72,72.83456444]
[1747886645435,36.2775914,176.79,176.74,26.0]
[1747886645625,36.2775914,176.79,176.75,51.42373709]
[1747886645933,36.2775914,176.79,176.78,26.0]
[1747886646139,36.2775914,176.79,176.78,44.79181043]
[1747886646714,36.2775914,176.79,176.78,44.64964886]
[1747886647038,36.2775914,176.79,176.78,89.11698559]
[1747886647749,36.2775914,176.79,176.78,56.48505893]
[1747886648051,27.9443914,176.79,176.78,90.76168559]
[1747886648231,33.94,176.87,176.84,0.14216157]
[1747886648555,33.94,176.88,176.84,0.14216157]
[1747886649046,32.63192666,176.92,176.87,0.14216157]
[1747886649242,32.63192666,176.93,176.88,18.64964886]
[1747886649441,41.11638216,176.94,176.88,18.64964886]
[1747886649631,32.63192666,176.93,176.88,18.64964886]
[1747886649827,41.11638216,176.94,176.88,18.64964886]
[1747886649828,41.11638216,176.94,176.89,18.64964886]
[1747886650050,33.94,176.94,176.89,51.28157552]
[1747886650357,66.57192666,176.95,176.89,51.28157552]
[1747886650574,55.52,177.0,176.92,26.0]
[1747886650727,32.63192666,176.97,176.93,18.64964886]
[1747886650927,66.57192666,176.96,176.93,18.64964886]
[1747886651161,32.63192666,176.95,176.93,18.64964886]
[1747886651362,32.63192666,176.94,176.9,18.64964886]
[1747886651527,32.63192666,176.91,176.86,18.64964886]
[1747886651732,32.63192666,176.89,176.86,18.64964886]
[1747886652233,32.63192666,176.88,176.83,32.5736]
[1747886652436,32.63192666,176.87,176.79,5.65642853]
[1747886652640,32.63192666,176.85,176.8,0.14216157]
[1747886653159,32.63192666,176.84,176.8,0.14216157]
[1747886653455,32.63192666,176.84,176.8,18.64964886]
[1747886653633,32.63192666,176.82,176.79,18.64964886]
[1747886654256,32.63192666,176.81,176.79,18.64964886]
[1747886654763,32.63192666,176.8,176.73,0.14216157]
[1747886654962,32.63192666,176.77,176.75,26.0]
[1747886655335,32.63192666,176.76,176.72,74.38166444]
[1747886655550,32.63192666,176.76,176.72,72.83456444]
[1747886656059,32.63192666,176.73,176.72,72.83456444]
[1747886656547,33.92,176.75,176.72,72.83456444]
[1747886656732,33.92,176.79,176.72,111.12514573]
[1747886656931,32.63192666,176.77,176.73,18.64964886]
[1747886657164,66.55192666,176.79,176.74,0.14216157]
[1747886657461,66.55192666,176.79,176.74,18.64964886]
[1747886657462,32.63192666,176.78,176.74,18.64964886]
[1747886657662,66.55192666,176.79,176.74,18.64964886]
[1747886657874,33.92,176.79,176.75,0.14216157]
[1747886658032,32.63192666,176.78,176.73,31.65828786]
[1747886658232,32.63192666,176.77,176.74,18.64964886]
[1747886658539,33.92,176.79,176.74,18.79181043]
[1747886658861,33.92,176.79,176.74,18.64964886]
[1747886659165,33.92,176.79,176.75,0.14216157]
[1747886659461,33.92,176.79,176.76,18.64964886]
[1747886659758,32.63192666,176.83,176.79,18.64964886]
[1747886660053,32.63192666,176.82,176.79,18.64964886]
[1747886660259,33.94,176.85,176.79,18.64964886]
[1747886660459,32.63192666,176.82,176.79,18.64964886]
[1747886661160,32.63192666,176.83,176.79,18.64964886]
[1747886661464,32.63192666,176.81,176.79,18.64964886]
[1747886661648,32.63192666,176.8,176.72,105.4664911]
[1747886661846,32.63192666,176.78,176.76,18.64964886]
[1747886662054,32.63192666,176.77,176.74,18.64964886]
[1747886662280,32.63192666,176.75,176.72,72.83456444]
[1747886662486,32.63192666,176.73,176.72,72.83456444]
[1747886662668,66.57192666,176.73,176.72,72.83456444]
[1747886663367,33.94,176.73,176.72,72.83456444]
[1747886663575,66.57192666,176.73,176.72,72.83456444]
[1747886663771,72.23027555,176.73,176.72,72.83456444]
[1747886666169,38.29027555,176.73,176.72,72.83456444]
[1747886666362,66.57192666,176.73,176.72,72.83456444]
[1747886666891,33.94,176.73,176.72,72.83456444]
[1747886667574,66.57192666,176.73,176.72,72.83456444]
[1747886667771,14.13813339,176.83,176.73,18.64964886]
[1747886667973,33.94,176.82,176.73,18.64964886]
[1747886668185,32.63192666,176.74,176.73,18.64964886]
[1747886668776,33.94,176.76,176.72,72.83456444]
[1747886669096,32.63192666,176.74,176.73,18.64964886]
[1747886669287,33.94,176.78,176.73,51.28157552]
[1747886669595,32.63192666,176.75,176.73,18.64964886]
[1747886669769,33.94,176.78,176.73,18.64964886]
[1747886670089,32.63192666,176.76,176.73,18.64964886]
[1747886670294,33.94,176.79,176.73,18.64964886]
[1747886670469,32.63192666,176.77,176.73,18.64964886]
[1747886670890,33.94,176.79,176.72,98.83456444]
[1747886671091,32.63192666,176.77,176.73,18.64964886]
[1747886671302,32.63192666,176.76,176.73,18.64964886]
[1747886671676,32.63192666,176.74,176.73,18.64964886]
[1747886671870,32.63192666,176.74,176.72,72.83456444]
[1747886672193,66.57192666,176.73,176.72,72.83456444]
[1747886672785,97.43192666,176.85,176.73,44.64964886]
[1747886672786,33.94,176.78,176.73,44.64964886]
[1747886672968,32.63192666,176.77,176.73,44.64964886]
[1747886673170,5.65450947,176.85,176.77,18.64964886]
[1747886673394,5.65450947,176.85,176.72,78.49309459]
[1747886673395,33.94,176.84,176.72,75.76365861]
[1747886673717,26.0,176.78,176.72,75.76365861]
[1747886673993,26.0,176.74,176.72,72.83456444]
[1747886674201,33.94,176.73,176.72,72.83456444]
[1747886674406,26.0,176.74,176.72,72.83456444]
[1747886674609,19.79638008,176.8,176.72,72.83456444]
[1747886674610,33.94,176.73,176.72,72.83456444]
[1747886674783,66.57192666,176.73,176.72,72.83456444]
[1747886675274,33.94,176.73,176.72,72.83456444]
[1747886675577,26.0,176.77,176.72,72.83456444]
[1747886675783,32.63192666,176.75,176.72,72.83456444]
[1747886676189,33.94,176.76,176.72,72.83456444]
[1747886676396,32.63192666,176.75,176.72,72.83456444]
[1747886676691,33.94,176.76,176.73,18.64964886]
[1747886676894,32.63192666,176.74,176.73,18.64964886]
[1747886677098,33.94,176.76,176.72,72.83456444]
[1747886677313,32.63192666,176.73,176.72,72.83456444]
[1747886677536,32.63192666,176.77,176.73,18.64964886]
[1747886677836,66.57192666,176.79,176.74,0.14216157]
[1747886678038,32.63192666,176.79,176.74,0.14216157]
[1747886678522,33.94,176.8,176.74,0.14216157]
[1747886678727,66.57192666,176.81,176.76,18.79181043]
[1747886679049,32.63192666,176.8,176.76,18.79181043]
[1747886679341,32.63192666,176.8,176.75,0.14216157]
[1747886679529,32.63192666,176.81,176.77,0.14216157]
[1747886679734,32.63192666,176.82,176.78,18.64964886]
[1747886680039,32.63192666,176.82,176.79,0.14216157]
[1747886680215,32.63192666,176.81,176.75,5.65742295]
[1747886680417,32.63192666,176.8,176.76,18.79181043]
[1747886680618,26.0,176.87,176.75,32.63192666]
[1747886680619,33.94,176.82,176.75,32.63192666]
[1747886680825,32.63192666,176.79,176.75,0.14216157]
[1747886681029,32.63192666,176.8,176.75,0.14216157]
[1747886681235,32.63192666,176.8,176.76,18.64964886]
[1747886681546,66.57192666,176.82,176.8,18.64964886]
[1747886681740,32.63192666,176.81,176.76,26.0]
[1747886682046,32.63192666,176.77,176.75,18.64964886]
[1747886682241,32.63192666,176.78,176.75,18.64964886]
[1747886682548,32.63192666,176.77,176.75,18.64964886]
[1747886682727,33.94,176.78,176.72,72.83456444]
[1747886682930,32.63192666,176.74,176.72,72.83456444]
[1747886683831,32.63192666,176.73,176.72,72.83456444]
[1747886684641,33.94,176.75,176.72,72.83456444]
[1747886684846,32.63192666,176.73,176.72,72.83456444]
[1747886685823,33.94,176.77,176.72,91.4842133]
[1747886686026,32.63192666,176.76,176.72,91.4842133]
[1747886686343,5.65514901,176.83,176.73,18.64964886]
[1747886686535,5.65323082,176.89,176.79,18.64964886]
[1747886686740,80.17232014,176.9,176.79,18.64964886]
[1747886686741,32.63192666,176.86,176.81,77.28157552]
[1747886686939,33.94,176.92,176.85,51.28157552]
[1747886687142,33.94,176.92,176.87,18.64964886]
[1747886687364,33.94,176.92,176.87,51.28157552]
[1747886687530,33.94,176.92,176.88,18.64964886]
[1747886687732,66.57192666,176.92,176.87,24.30344589]
[1747886688037,32.63192666,176.95,176.9,18.64964886]
[1747886688235,32.63192666,176.91,176.81,12.3025383]
[1747886688539,32.63192666,176.87,176.82,18.79181043]
[1747886688751,32.63192666,176.86,176.82,18.64964886]
[1747886689056,32.63192666,176.87,176.83,0.14216157]
[1747886689233,32.63192666,176.86,176.83,0.14216157]
[1747886689640,32.63192666,176.84,176.82,18.64964886]
[1747886689826,5.64939833,177.01,176.83,0.14216157]
[1747886690034,32.63192666,176.91,176.87,18.64964886]
[1747886690374,33.94,176.96,176.88,0.14216157]
[1747886690525,33.94,176.95,176.89,18.64964886]
[1747886690851,32.63192666,176.93,176.85,33.94]
[1747886691160,32.63192666,176.92,176.89,18.64964886]
[1747886691329,33.94,176.95,176.88,18.64964886]
[1747886691530,32.63192666,176.89,176.86,18.64964886]
[1747886691860,59.94,176.91,176.75,20.23559818]
[1747886692034,32.63192666,176.82,176.77,32.63192666]
[1747886692232,32.63192666,176.82,176.8,18.64964886]
[1747886692859,32.63192666,176.81,176.78,44.64964886]
[1747886693037,32.63192666,176.8,176.76,0.14216157]
[1747886693235,32.63192666,176.81,176.76,26.14216157]
[1747886693450,32.63192666,176.81,176.77,18.64964886]
[1747886694136,32.63192666,176.8,176.77,18.64964886]
[1747886694458,32.63192666,176.8,176.78,3.16661161]
[1747886694950,5.65520723,176.83,176.78,3.16661161]
[1747886695142,32.63192666,176.8,176.78,3.16661161]
[1747886695534,32.63192666,176.79,176.75,44.64964886]
[1747886695747,32.63192666,176.77,176.75,44.64964886]
[1747886695934,14.13477848,176.87,176.76,0.14216157]
[1747886696132,32.63192666,176.8,176.76,0.14216157]
[1747886696541,32.63192666,176.78,176.75,44.64964886]
[1747886696842,32.63192666,176.78,176.75,50.3073498]
[1747886697060,33.94,176.83,176.75,50.3073498]
[1747886697247,32.63192666,176.81,176.76,0.14216157]
[1747886697449,32.63192666,176.8,176.76,0.14216157]
[1747886697643,32.63192666,176.78,176.75,50.3073498]
[1747886697839,32.63192666,176.76,176.75,44.64964886]
[1747886698059,33.94,176.79,176.75,50.30724526]
[1747886698259,32.63192666,176.79,176.75,50.30724526]
[1747886698641,32.63192666,176.77,176.75,50.30724526]
[1747886698851,32.63192666,176.77,176.72,72.97672601]
[1747886699159,32.63192666,176.76,176.74,18.64964886]
[1747886701064,32.63192666,176.76,176.72,72.83456444]
[1747886701065,32.63192666,176.75,176.72,72.83456444]
[1747886701361,32.63192666,176.74,176.72,72.83456444]
[1747886701561,33.94,176.75,176.72,72.83456444]
[1747886701562,33.94,176.75,176.73,18.64964886]
[1747886701867,32.63192666,176.77,176.73,18.64964886]
[1747886702062,32.63192666,176.75,176.72,98.83456444]
[1747886702360,32.63192666,176.73,176.72,72.83456444]
[1747886702539,32.63192666,176.75,176.72,91.4842133]
[1747886702738,33.94,176.78,176.73,18.64964886]
[1747886703159,32.63192666,176.74,176.72,72.83456444]
[1747886703552,32.63192666,176.73,176.72,72.83456444]
[1747886703859,66.57192666,176.74,176.72,72.83456444]
[1747886704039,39.59810442,176.74,176.72,72.83456444]
[1747886704361,32.63192666,176.73,176.72,72.83456444]
[1747886704864,66.57192666,176.74,176.72,72.83456444]
[1747886705038,136.9,176.83,176.72,72.83456444]
[1747886705239,32.63192666,176.77,176.73,18.64964886]
[1747886705467,33.94,176.76,176.73,18.64964886]
[1747886706064,14.13641016,176.85,176.75,26.0]
[1747886706265,32.63192666,176.81,176.76,18.64964886]
[1747886706455,33.94,176.8,176.76,18.64964886]
[1747886707261,0.14216157,176.9,176.76,18.64964886]
[1747886707262,33.94,176.85,176.8,18.64964886]
[1747886707454,33.94,176.85,176.8,51.28157552]
[1747886707767,32.63192666,176.84,176.8,18.64964886]
[1747886708154,5.65163332,176.94,176.82,18.64964886]
[1747886708357,32.63192666,176.86,176.82,18.64964886]
[1747886708566,32.63192666,176.85,176.81,26.0]
[1747886708868,32.63192666,176.82,176.73,0.14216157]
[1747886709161,59.94,176.87,176.73,26.14216157]
[1747886709162,26.0,176.87,176.73,26.14216157]
[1747886709366,32.63192666,176.78,176.74,18.64964886]
[1747886709560,26.0,176.87,176.75,0.14216157]
[1747886709561,32.63192666,176.8,176.75,0.14216157]
[1747886709743,33.94,176.83,176.76,18.64964886]
[1747886709938,32.63192666,176.81,176.76,18.64964886]
[1747886710172,32.63192666,176.81,176.76,56.93875804]
[1747886710367,33.94,176.83,176.75,0.14216157]
[1747886710667,39.5952883,176.83,176.74,18.79181043]
[1747886710845,32.63192666,176.8,176.74,51.42373709]
[1747886711048,32.63192666,176.79,176.74,51.42373709]
[1747886711358,32.63192666,176.77,176.72,78.49322711]
[1747886711542,32.63192666,176.77,176.73,18.64964886]
[1747886712250,32.63192666,176.74,176.72,72.83456444]
[1747886712447,32.63192666,176.73,176.72,72.83456444]
[1747886712653,32.63192666,176.74,176.72,72.83456444]
[1747886712968,32.63192666,176.73,176.72,72.83456444]
[1747886713557,58.63192666,176.73,176.72,72.83456444]
[1747886713762,58.63192666,176.73,176.71,87.39996345]
[1747886714069,18.79181043,176.69,176.64,120.63487021]
[1747886714256,67.08464849,176.65,176.64,10.64769552]
[1747886714451,44.79181043,176.61,176.59,137.8684231]
[1747886714650,159.36373709,176.6,176.59,137.8684231]
[1747886714842,149.36373709,176.6,176.59,137.8684231]
[1747886715042,159.36373709,176.6,176.59,137.8684231]
[1747886715259,149.36373709,176.6,176.59,137.8684231]
[1747886716150,136.37660238,176.6,176.59,137.8684231]
[1747886716366,6.08343319,176.65,176.59,137.8684231]
[1747886716670,32.63192666,176.6,176.59,137.8684231]
[1747886716872,66.57192666,176.6,176.59,137.8684231]
[1747886717257,66.71408823,176.6,176.59,137.8684231]
[1747886717451,92.59192666,176.6,176.59,137.8684231]
[1747886717769,133.75071347,176.6,176.59,137.8684231]
[1747886718278,139.41322762,176.6,176.59,137.8684231]
[1747886718571,107.75071347,176.6,176.59,137.8684231]
[1747886719454,41.15878681,176.6,176.59,137.8684231]
[1747886719657,107.75071347,176.6,176.59,137.8684231]
[1747886720456,41.15878681,176.6,176.59,137.8684231]
[1747886720663,107.75071347,176.6,176.59,137.8684231]
[1747886721365,137.68491426,176.6,176.59,137.8684231]
[1747886721681,133.75071347,176.6,176.59,137.8684231]
[1747886722168,41.15878681,176.6,176.59,137.8684231]
[1747886722375,75.11878681,176.6,176.59,137.8684231]
[1747886722554,107.75071347,176.6,176.59,137.8684231]
[1747886722756,41.15878681,176.6,176.59,137.8684231]
[1747886722958,41.15878681,176.6,176.59,170.50034976]
[1747886723262,62.93511632,176.6,176.59,194.81283343]
[1747886723457,62.93511632,176.6,176.59,137.8684231]
[1747886724065,41.15878681,176.6,176.59,137.8684231]
[1747886724263,41.15878681,176.6,176.59,170.50034976]
[1747886724582,75.13878681,176.6,176.59,137.8684231]
[1747886725653,107.77071347,176.6,176.59,137.8684231]
[1747886726570,75.13878681,176.6,176.59,137.8684231]
[1747886726754,107.77071347,176.6,176.59,137.8684231]
[1747886727573,41.15878681,176.6,176.59,137.8684231]
[1747886727779,107.77071347,176.6,176.59,137.8684231]
[1747886729177,113.43322762,176.6,176.59,137.8684231]
[1747886729681,75.13878681,176.6,176.59,137.8684231]
[1747886730181,107.77071347,176.6,176.59,137.8684231]
[1747886730569,41.15878681,176.6,176.59,137.8684231]
[1747886730775,75.13878681,176.6,176.59,137.8684231]
[1747886731580,132.08287648,176.6,176.59,137.8684231]
[1747886731877,132.22503805,176.6,176.59,137.8684231]
[1747886732057,142.22503805,176.6,176.59,137.8684231]
[1747886732260,44.79181043,176.54,176.53,155.10197599]
[1747886732464,189.24817574,176.54,176.53,155.10197599]
[1747886732661,206.20817574,176.54,176.53,44.49493876]
[1747886732969,206.20817574,176.54,176.53,16.18124216]
[1747886733154,28.79181043,176.49,176.42,172.33552888]
[1747886733354,95.40373709,176.49,176.42,172.33552888]
[1747886733567,52.77181043,176.49,176.42,172.33552888]
[1747886733779,154.79192666,176.49,176.42,172.33552888]
[1747886733981,147.58373709,176.49,176.42,172.33552888]
[1747886734284,195.93762386,176.49,176.42,172.33552888]
[1747886734462,201.60366726,176.49,176.42,172.33552888]
[1747886734781,218.56366726,176.49,176.42,172.33552888]
[1747886734990,218.56366726,176.49,176.48,102.74672579]
[1747886735189,201.60366726,176.49,176.48,79.21772579]
[1747886735384,191.60366726,176.49,176.48,79.21772579]
[1747886735574,201.60366726,176.49,176.48,79.21772579]
[1747886735978,105.44366726,176.49,176.48,73.31972579]
[1747886736178,26.14216157,176.45,176.42,172.33552888]
[1747886736378,33.98,176.44,176.42,172.33552888]
[1747886736586,59.98,176.43,176.42,172.33552888]
[1747886736773,26.0,176.43,176.42,172.33552888]
[1747886737078,38.35388677,176.49,176.42,204.96745554]
[1747886737279,33.98,176.48,176.42,172.33552888]
[1747886737695,38.35388677,176.49,176.47,32.63192666]
[1747886737863,72.33388677,176.49,176.48,32.63192666]
[1747886738264,38.35388677,176.49,176.48,51.28157552]
[1747886738574,72.33388677,176.49,176.48,32.63192666]
[1747886739094,72.33388677,176.49,176.48,51.28157552]
[1747886739265,28.35408677,176.49,176.48,51.42373709]
[1747886739471,32.29194633,176.49,176.48,51.42373709]
[1747886739792,67.11516023,176.59,176.48,51.42373709]
[1747886739793,41.87571912,176.59,176.55,26.0]
[1747886739969,226.2703526,176.68,176.58,32.63192666]
[1747886740169,32.63192666,176.64,176.48,34.0]
[1747886740488,5.66251415,176.6,176.5,18.64964886]
[1747886740669,66.63192666,176.59,176.5,18.64964886]
[1747886740989,58.63192666,176.55,176.43,12.13057689]
[1747886741179,66.63192666,176.54,176.49,32.63192666]
[1747886741376,66.63192666,176.54,176.45,18.64964886]
[1747886741577,66.63192666,176.54,176.44,26.0]
[1747886741797,34.0,176.54,176.44,18.64964886]
[1747886742098,34.0,176.54,176.49,32.63192666]
[1747886742293,34.0,176.54,176.5,32.63192666]
[1747886742500,5.66475953,176.53,176.44,18.64964886]
[1747886742784,33.98,176.52,176.49,32.63192666]
[1747886742996,0.14216157,176.51,176.35,6.6271]
[1747886743210,32.63192666,176.5,176.45,32.63192666]
[1747886743380,33.98,176.49,176.45,32.63192666]
[1747886744187,58.63192666,176.48,176.43,32.63192666]
[1747886744383,26.0,176.46,176.43,32.63192666]
[1747886744688,39.66734884,176.45,176.43,32.63192666]
[1747886745485,39.66734884,176.45,176.36,18.64964886]
[1747886745795,39.66734884,176.45,176.35,6.6271]
[1747886746003,34.0,176.45,176.44,32.63192666]
[1747886746301,34.0,176.48,176.44,32.63192666]
[1747886746597,96.2,176.52,176.47,32.63192666]
[1747886746809,96.2,176.52,176.51,32.63192666]
[1747886746969,140.46278281,176.47,176.44,18.64964886]
[1747886747291,140.46278281,176.47,176.46,32.63192666]
[1747886747292,132.58836761,176.47,176.46,32.63192666]
[1747886747491,132.58836761,176.47,176.46,32.77408823]
[1747886747693,89.27908398,176.47,176.46,58.63192666]
[1747886747877,34.0,176.5,176.46,32.63192666]
[1747886748084,34.0,176.5,176.49,32.63192666]
[1747886748671,39.66572237,176.5,176.49,32.63192666]
[1747886748889,212.1,176.54,176.49,32.63192666]
[1747886749091,212.1,176.54,176.53,32.63192666]
[1747886749309,34.0,176.54,176.53,32.63192666]
[1747886749589,34.0,176.54,176.51,32.63192666]
[1747886750284,34.0,176.54,176.5,32.63192666]
[1747886750673,5.66475953,176.53,176.5,32.63192666]
[1747886750999,19.82665835,176.53,176.43,26.0]
[1747886751173,163.74688035,176.5,176.38,0.14216157]
[1747886751368,34.0,176.49,176.38,0.14216157]
[1747886751690,34.0,176.49,176.46,32.63192666]
[1747886751868,34.0,176.49,176.44,32.63192666]
[1747886752071,26.0,176.46,176.42,32.63192666]
[1747886752297,34.0,176.45,176.41,32.63192666]
[1747886752475,34.0,176.44,176.41,32.63192666]
[1747886753105,39.66767608,176.44,176.41,32.63192666]
[1747886753282,39.66767608,176.44,176.39,32.63192666]
[1747886754283,34.0,176.43,176.39,32.63192666]
[1747886754693,34.0,176.43,176.38,32.63192666]
[1747886755198,26.0,176.48,176.35,6.6271]
[1747886755199,34.0,176.46,176.36,5.66992296]
[1747886755371,32.63192666,176.45,176.39,32.63192666]
[1747886755576,58.63192666,176.42,176.36,32.63192666]
[1747886755901,34.0,176.41,176.36,32.63192666]
[1747886756207,19.83339943,176.47,176.39,32.63192666]
[1747886756407,34.0,176.46,176.42,32.63192666]
[1747886756573,66.63192666,176.46,176.36,44.64964886]
[1747886756774,32.63192666,176.45,176.39,32.63192666]
[1747886756975,5.66764905,176.44,176.39,32.63192666]
[1747886757198,5.66764905,176.44,176.4,32.63192666]
[1747886757387,39.66764905,176.44,176.42,32.63192666]
[1747886757679,39.66764905,176.44,176.4,32.63192666]
[1747886757880,39.66764905,176.44,176.39,32.63192666]
[1747886758076,39.66764905,176.44,176.38,32.63192666]
[1747886758292,5.66764905,176.44,176.41,32.63192666]
[1747886758490,39.66764905,176.44,176.35,18.79181043]
[1747886758795,39.66764905,176.44,176.41,32.63192666]
[1747886758997,226.30364598,176.51,176.43,32.63192666]
[1747886759199,5.66572237,176.5,176.47,32.63192666]
[1747886759387,5.66572237,176.5,176.48,32.63192666]
[1747886759586,5.66572237,176.5,176.41,18.64964886]
[1747886759781,32.63192666,176.48,176.42,32.63192666]
[1747886759985,66.63192666,176.47,176.38,26.0]
[1747886760301,32.63192666,176.45,176.39,32.63192666]
[1747886760476,32.63192666,176.44,176.39,32.63192666]
[1747886760676,162.53753617,176.47,176.41,32.63192666]
[1747886760885,60.0,176.46,176.36,0.14216157]
[1747886761193,38.29925451,176.45,176.4,32.63192666]
[1747886761503,34.0,176.44,176.4,32.63192666]
[1747886761690,66.63192666,176.44,176.39,32.63192666]
[1747886761880,32.63192666,176.43,176.35,6.558]
[1747886762081,32.63192666,176.43,176.37,32.63192666]
[1747886762281,58.63192666,176.43,176.3,7.27755084]
[1747886762500,32.63192666,176.41,176.36,32.63192666]
[1747886762698,32.63192666,176.4,176.34,32.63192666]
[1747886762899,34.0,176.39,176.34,32.63192666]
[1747886763106,5.66957704,176.38,176.34,32.63192666]
[1747886763405,32.63192666,176.37,176.26,17.6014704]
[1747886763602,5.66764905,176.44,176.35,32.63192666]
[1747886763908,26.0,176.43,176.38,32.63192666]